fUST/lending_fUST_20240906
["ID","MTS","AMOUNT","RATE_DAILY","PERIOD"]
[337323545,1725601871801,-500.0,0.00021186,2]
[337323546,1725601871811,-1210.73,0.00021186,2]
[337323547,1725601871821,-585.83,0.00021186,2]
[337323548,1725601871831,-151.0,0.00021186,2]
[337323549,1725601871840,-1316.58,0.00021186,2]
[337323550,1725601871849,-1023.49,0.00021186,2]
[337323551,1725601871859,-500.0,0.00021186,2]
[337323552,1725601871869,-235.76894379,0.00021186,2]
[337323553,1725601871880,-248.30055218,0.00021186,2]
[337323554,1725601871890,-167.409688,0.00021186,2]
[337323555,1725601871899,-500.0,0.00021186,2]
[337323556,1725601871908,-500.0,0.00021186,2]
[337323557,1725601871918,-167.409688,0.00021186,2]
[337323558,1725601871928,-24986.29980248,0.00021186,2]
[337323559,1725601872527,-500.0,0.0002007,2]
[337323560,1725601872537,-500.0,0.0002007,2]
[337323561,1725601872547,-258.03541492,0.0002007,2]
[337323562,1725601872558,-391.98536566,0.0002007,2]
[337323563,1725601872567,-500.0,0.00020089,2]
[337323564,1725601872577,-290.58988788,0.00020089,2]
[337323565,1725601872587,-2041.51019752,0.00021186,2]
[337323566,1725601872596,-500.0,0.00021186,2]
[337323567,1725601872605,-146.216489,0.00021186,2]
[337323572,1725602012127,11041.3,0.00019075,2]
[337323574,1725602109866,169.1061849,0.0001997,2]
[337323575,1725602145072,2316.1340307,0.0001996,2]
[337323577,1725602314302,1112.88933009,0.0001997,2]
[337323580,1725602655439,2412.63961533,0.00019949,2]
[337323582,1725602701915,150.112233,0.0002,4]
[337323583,1725602702374,150.112238,0.0002,3]
[337323584,1725602704438,1001.60039709,0.00019945,2]
[337323587,1725602824600,400.0,0.0002,3]
[337323618,1725603007442,150.112233,0.0002,3]
[337323634,1725603032071,-300.0,0.00020028,2]
[337323635,1725603032080,-828.3,0.00020029,2]
[337323649,1725603038268,-500.0,0.00020028,2]
[337323650,1725603038278,-244.42085157,0.00020028,2]
[337323651,1725603038288,-652.38,0.00020029,2]
[337323652,1725603038297,-5593.57,0.00020029,2]
[337323653,1725603038306,-1166.64,0.00020029,2]
[337323654,1725603038316,-500.0,0.00020029,2]
[337323655,1725603038325,-500.0,0.00020029,2]
[337323656,1725603038334,-637.89,0.00020029,2]
[337323657,1725603038344,-474.03764114,0.00020029,2]
[337323658,1725603038355,-25.96235886,0.00020029,2]
[337323659,1725603038365,-1010.8,0.00020029,2]
[337323660,1725603038375,-1971.42,0.00020029,2]
[337323661,1725603038386,-500.0,0.00020029,2]
[337323662,1725603038397,-500.0,0.00020029,2]
[337323663,1725603038406,-500.0,0.00020029,2]
[337323664,1725603038415,-563.45996673,0.00020029,2]
[337323665,1725603038425,-280551.143438,0.00020029,2]
[337323666,1725603038436,-119050.729001,0.00020029,2]
[337323667,1725603038446,-556.01,0.00020038,2]
[337323668,1725603038456,-7934.81,0.00020038,2]
[337323669,1725603038466,-592.95,0.00020038,2]
[337323670,1725603038476,-500.0,0.00020038,2]
[337323671,1725603038485,-1374.45,0.00020038,2]
[337323672,1725603038494,-777.41,0.00020038,2]
[337323673,1725603038503,-500.0,0.00020038,2]
[337323674,1725603038513,-1670.59,0.00020038,2]
[337323675,1725603038523,-878.94,0.00020039,2]
[337323676,1725603038532,-500.0,0.00020039,2]
[337323677,1725603038542,-881.97,0.00020039,2]
[337323678,1725603038552,-1540.13,0.00020039,2]
[337323679,1725603038562,-938.2,0.00020039,2]
[337323680,1725603038572,-1349.8,0.00020039,2]
[337323681,1725603038581,-500.0,0.00020039,2]
[337323682,1725603038590,-500.0,0.00020039,2]
[337323683,1725603038600,-24775.49,0.00020039,2]
[337323684,1725603038609,-905.47,0.00020039,2]
[337323685,1725603038618,-1153.75,0.00020039,2]
[337323686,1725603038627,-500.0,0.00020039,2]
[337323687,1725603038637,-500.0,0.00020039,2]
[337323688,1725603038646,-1020.9,0.00020039,2]
[337323689,1725603038655,-1242.45,0.00020039,2]
[337323690,1725603038665,-500.0,0.00020039,2]
[337323691,1725603038674,-677.65,0.00020039,2]
[337323692,1725603038683,-2039.31,0.00020039,2]
[337323693,1725603038692,-500.0,0.00020039,2]
[337323694,1725603038702,-2650.81,0.00020039,2]
[337323695,1725603038712,-500.0,0.00020039,2]
[337323696,1725603038721,-500.0,0.00020039,2]
[337323697,1725603038730,-500.0,0.00020039,2]
[337323698,1725603038739,-500.0,0.00020039,2]
[337323699,1725603038748,-500.0,0.00020039,2]
[337323700,1725603038757,-500.0,0.00020039,2]
[337323701,1725603038767,-500.0,0.00020039,2]
[337323702,1725603038776,-500.0,0.00020039,2]
[337323703,1725603038785,-1129.76,0.00020039,2]
[337323704,1725603038794,-1211.83,0.00020039,2]
[337323705,1725603038804,-1277.93,0.00020039,2]
[337323706,1725603038814,-513.38189387,0.00020039,2]
[337323707,1725603038823,-500.0,0.00020039,2]
[337323708,1725603038833,-699.45,0.00020039,2]
[337323709,1725603038845,-500.0,0.00020039,2]
[337323710,1725603038855,-500.0,0.00020039,2]
[337323711,1725603038867,-500.0,0.00020039,2]
[337323712,1725603038879,-500.0,0.00020039,2]
[337323713,1725603038890,-500.0,0.00020039,2]
[337323714,1725603038900,-500.0,0.00020039,2]
[337323715,1725603038910,-500.0,0.00020039,2]
[337323716,1725603038921,-500.0,0.00020039,2]
[337323717,1725603038931,-500.0,0.00020039,2]
[337323718,1725603038942,-500.0,0.00020039,2]
[337323719,1725603038954,-500.0,0.00020039,2]
[337323720,1725603038963,-156.57,0.00020039,2]
[337323721,1725603038973,-500.0,0.00020039,2]
[337323722,1725603038982,-500.0,0.00020039,2]
[337323723,1725603038991,-500.0,0.00020039,2]
[337323724,1725603039000,-58386.62,0.00020039,2]
[337323725,1725603039009,-500.0,0.00020045,2]
[337323726,1725603039019,-229.2762737,0.00020048,2]
[337323727,1725603039028,-500.0,0.00020048,2]
[337323728,1725603039039,-500.0,0.00020048,2]
[337323729,1725603039050,-220.80596463,0.00020048,2]
[337323730,1725603039059,-500.0,0.00020048,2]
[337323731,1725603039068,-446.2303399,0.00020048,2]
[337323732,1725603039077,-416.42636408,0.00020048,2]
[337323733,1725603039086,-398.1226599,0.00020048,2]
[337323734,1725603039095,-500.0,0.00020048,2]
[337323735,1725603039104,-500.0,0.00020048,2]
[337323736,1725603039114,-500.0,0.00020048,2]
[337323737,1725603039123,-500.0,0.00020048,2]
[337323738,1725603039132,-500.0,0.00020048,2]
[337323739,1725603039141,-500.0,0.00020048,2]
[337323740,1725603039150,-500.0,0.00020048,2]
[337323741,1725603039159,-500.0,0.00020048,2]
[337323742,1725603039168,-29384.85857619,0.00020049,15]
[337323743,1725603039178,-500.0,0.00020049,2]
[337323744,1725603039187,-500.0,0.00020049,2]
[337323745,1725603039196,-500.0,0.00020049,2]
[337323746,1725603039205,-500.0,0.00020049,2]
[337323747,1725603039216,-500.0,0.00020049,2]
[337323748,1725603039225,-500.0,0.00020049,2]
[337323749,1725603039234,-500.0,0.00020049,2]
[337323750,1725603039244,-500.0,0.00020049,2]
[337323751,1725603039254,-500.0,0.00020049,2]
[337323752,1725603039264,-500.0,0.00020049,2]
[337323753,1725603039275,-500.0,0.00020049,2]
[337323754,1725603039285,-482.66765562,0.00020049,2]
[337323755,1725603039294,-500.0,0.00020049,2]
[337323756,1725603039304,-500.0,0.00020049,2]
[337323757,1725603039314,-500.0,0.00020049,2]
[337323758,1725603039324,-807.11,0.00020049,2]
[337323759,1725603039334,-500.0,0.00020049,2]
[337323760,1725603039343,-542.2,0.00020049,2]
[337323761,1725603039353,-500.0,0.00020049,2]
[337323762,1725603039362,-500.0,0.00020049,2]
[337323763,1725603039372,-500.0,0.00020049,2]
[337323764,1725603039383,-626.22,0.00020049,2]
[337323765,1725603039396,-500.0,0.00020049,2]
[337323766,1725603039407,-500.0,0.00020049,2]
[337323767,1725603039416,-500.0,0.00020049,2]
[337323768,1725603039426,-500.0,0.00020049,2]
[337323769,1725603039437,-500.0,0.00020049,2]
[337323770,1725603039447,-500.0,0.00020049,2]
[337323771,1725603039456,-500.0,0.00020049,2]
[337323772,1725603039467,-200.0,0.00020049,2]
[337323773,1725603039477,-285.93415257,0.00020049,2]
[337323774,1725603039487,-426.13474748,0.00020049,2]
[337323775,1725603039497,-500.0,0.00020049,2]
[337323776,1725603039507,-500.0,0.00020049,2]
[337323777,1725603039518,-615.08745678,0.00020049,2]
[337323778,1725603039530,-515.34043209,0.00020049,2]
[337323779,1725603039541,-500.0,0.00020049,2]
[337323780,1725603039551,-634.05,0.00020049,2]
[337323781,1725603039561,-500.0,0.00020049,2]
[337323782,1725603039571,-500.0,0.00020049,2]
[337323783,1725603039581,-500.0,0.00020049,2]
[337323784,1725603039591,-500.0,0.00020049,2]
[337323785,1725603039601,-622.5,0.00020049,2]
[337323786,1725603039611,-500.0,0.00020049,2]
[337323787,1725603039621,-500.0,0.00020049,2]
[337323788,1725603039631,-500.0,0.00020049,2]
[337323789,1725603039641,-500.0,0.00020049,2]
[337323790,1725603039650,-311.00611617,0.00020049,2]
[337323791,1725603039660,-500.0,0.00020049,2]
[337323792,1725603039669,-903.49,0.00020049,2]
[337323793,1725603039680,-500.0,0.00020049,2]
[337323794,1725603039692,-500.0,0.00020049,2]
[337323795,1725603039703,-500.0,0.00020049,2]
[337323796,1725603039715,-500.0,0.00020049,2]
[337323797,1725603039725,-500.0,0.00020049,2]
[337323798,1725603039735,-500.0,0.00020049,2]
[337323799,1725603039746,-500.0,0.00020049,2]
[337323800,1725603039758,-500.0,0.00020049,2]
[337323801,1725603039769,-500.0,0.00020049,2]
[337323802,1725603039779,-500.0,0.00020049,2]
[337323803,1725603039790,-500.0,0.00020049,2]
[337323804,1725603039802,-500.0,0.00020049,2]
[337323805,1725603039812,-500.0,0.00020049,2]
[337323806,1725603039823,-500.0,0.00020049,2]
[337323807,1725603039834,-500.0,0.00020049,2]
[337323809,1725603039844,-500.0,0.00020049,2]
[337323810,1725603039854,-582.54,0.00020049,2]
[337323811,1725603039864,-500.0,0.00020049,2]
[337323812,1725603039874,-500.0,0.00020049,2]
[337323813,1725603039884,-500.0,0.00020049,2]
[337323814,1725603039894,-500.0,0.00020049,2]
[337323815,1725603039903,-500.0,0.00020049,2]
[337323816,1725603039914,-500.0,0.00020049,2]
[337323817,1725603039924,-500.0,0.00020049,2]
[337323818,1725603039934,-500.0,0.00020049,2]
[337323819,1725603039944,-500.0,0.00020049,2]
[337323821,1725603039953,-752.04,0.00020049,2]
[337323822,1725603039963,-500.0,0.00020049,2]
[337323823,1725603039977,-500.0,0.00020049,2]
[337323824,1725603039987,-500.0,0.00020049,2]
[337323825,1725603039996,-500.0,0.00020049,2]
[337323826,1725603040006,-500.0,0.00020049,2]
[337323827,1725603040015,-502.83417427,0.00020049,2]
[337323828,1725603040026,-500.0,0.00020049,2]
[337323829,1725603040035,-500.0,0.00020049,2]
[337323830,1725603040045,-188.24012379,0.00020049,2]
[337323831,1725603040055,-500.0,0.00020049,2]
[337323832,1725603040065,-500.0,0.00020049,2]
[337323833,1725603040076,-508.35800659,0.00020049,2]
[337323834,1725603040086,-500.0,0.00020049,2]
[337323835,1725603040098,-500.0,0.00020049,2]
[337323836,1725603040110,-500.0,0.00020049,2]
[337323837,1725603040120,-500.0,0.00020049,2]
[337323838,1725603040131,-500.0,0.00020049,2]
[337323839,1725603040144,-839.29,0.00020049,2]
[337323840,1725603040154,-500.0,0.00020049,2]
[337323841,1725603040164,-500.0,0.00020049,2]
[337323842,1725603040174,-500.0,0.00020049,2]
[337323843,1725603040185,-500.0,0.00020049,2]
[337323844,1725603040195,-500.0,0.00020049,2]
[337323845,1725603040207,-500.0,0.00020049,2]
[337323846,1725603040218,-500.0,0.00020049,2]
[337323847,1725603040227,-615.18903807,0.00020049,2]
[337323848,1725603040236,-500.0,0.00020049,2]
[337323849,1725603040247,-500.0,0.00020049,2]
[337323850,1725603040257,-500.0,0.00020049,2]
[337323851,1725603040269,-586.11902289,0.00020049,2]
[337323852,1725603040279,-500.0,0.00020049,2]
[337323853,1725603040291,-500.0,0.00020049,2]
[337323854,1725603040304,-500.0,0.00020049,2]
[337323855,1725603040317,-500.0,0.00020049,2]
[337323856,1725603040329,-500.0,0.00020049,2]
[337323857,1725603040340,-500.0,0.00020049,2]
[337323858,1725603040352,-500.0,0.00020049,2]
[337323859,1725603040363,-500.0,0.00020049,2]
[337323860,1725603040372,-500.0,0.00020049,2]
[337323861,1725603040382,-500.0,0.00020049,2]
[337323862,1725603040395,-539.28358815,0.00020049,2]
[337323863,1725603040404,-1430.21,0.00020049,2]
[337323864,1725603040414,-500.0,0.00020049,2]
[337323865,1725603040424,-500.0,0.00020049,2]
[337323866,1725603040434,-500.0,0.00020049,2]
[337323867,1725603040444,-500.0,0.00020049,2]
[337323868,1725603040453,-500.0,0.00020049,2]
[337323869,1725603040464,-500.0,0.00020049,2]
[337323870,1725603040474,-500.0,0.00020049,2]
[337323871,1725603040484,-1109.83,0.00020049,2]
[337323872,1725603040493,-500.0,0.00020049,2]
[337323873,1725603040503,-1000.0,0.00020049,2]
[337323874,1725603040513,-500.0,0.00020049,2]
[337323875,1725603040524,-500.0,0.00020049,2]
[337323876,1725603040537,-500.0,0.00020049,2]
[337323877,1725603040547,-500.0,0.00020049,2]
[337323878,1725603040556,-500.0,0.00020049,2]
[337323879,1725603040566,-500.0,0.00020049,2]
[337323880,1725603040575,-736.06,0.00020049,2]
[337323881,1725603040585,-500.0,0.00020049,2]
[337323882,1725603040595,-500.0,0.00020049,2]
[337323883,1725603040784,-537.01,0.00020049,2]
[337323884,1725603040794,-500.0,0.00020049,2]
[337323885,1725603040803,-531.57970184,0.00020049,2]
[337323886,1725603040823,-500.0,0.00020049,2]
[337323887,1725603040835,-524.97655021,0.00020049,2]
[337323888,1725603040844,-500.0,0.00020049,2]
[337323889,1725603040854,-500.0,0.00020049,2]
[337323890,1725603040864,-500.0,0.00020049,2]
[337323891,1725603040874,-500.0,0.00020049,2]
[337323892,1725603040885,-500.0,0.00020049,2]
[337323893,1725603040895,-500.0,0.00020049,2]
[337323894,1725603040905,-500.0,0.00020049,2]
[337323895,1725603040915,-500.0,0.00020049,2]
[337323896,1725603040925,-500.0,0.00020049,2]
[337323897,1725603040935,-1628.82,0.00020049,2]
[337323898,1725603040945,-500.0,0.00020049,2]
[337323899,1725603040955,-964.66,0.00020049,2]
[337323900,1725603040964,-502.67528363,0.00020049,2]
[337323901,1725603040974,-609.60466225,0.00020049,2]
[337323902,1725603040984,-500.0,0.00020049,2]
[337323903,1725603040994,-500.0,0.00020049,2]
[337323904,1725603041004,-500.0,0.00020049,2]
[337323905,1725603041014,-500.0,0.00020049,2]
[337323906,1725603041025,-500.0,0.00020049,2]
[337323907,1725603041035,-500.0,0.00020049,2]
[337323908,1725603041046,-500.0,0.00020049,2]
[337323909,1725603041056,-500.0,0.00020049,2]
[337323910,1725603041067,-500.0,0.00020049,2]
[337323911,1725603041078,-500.0,0.00020049,2]
[337323912,1725603041088,-500.0,0.00020049,2]
[337323913,1725603041099,-500.0,0.00020049,2]
[337323914,1725603041109,-500.0,0.00020049,2]
[337323915,1725603041119,-536.72990534,0.00020049,2]
[337323916,1725603041132,-500.0,0.00020049,2]
[337323917,1725603041141,-353.05120174,0.00020049,2]
[337323918,1725603041151,-500.0,0.00020049,2]
[337323919,1725603041161,-500.0,0.00020049,2]
[337323920,1725603041170,-508.0240334,0.00020049,2]
[337323921,1725603041180,-500.0,0.00020049,2]
[337323922,1725603041190,-500.0,0.00020049,2]
[337323923,1725603041200,-500.0,0.00020049,2]
[337323924,1725603041210,-500.0,0.00020049,2]
[337323925,1725603041220,-500.0,0.00020049,2]
[337323926,1725603041230,-500.0,0.00020049,2]
[337323927,1725603041239,-1047.98,0.00020049,2]
[337323928,1725603041249,-500.0,0.00020049,2]
[337323929,1725603041259,-500.0,0.00020049,2]
[337323930,1725603041268,-500.0,0.00020049,2]
[337323931,1725603041278,-500.0,0.00020049,2]
[337323932,1725603041287,-500.0,0.00020049,2]
[337323933,1725603041298,-500.0,0.00020049,2]
[337323934,1725603041308,-500.0,0.00020049,2]
[337323935,1725603041318,-500.0,0.00020049,2]
[337323936,1725603041329,-500.0,0.00020049,2]
[337323937,1725603041339,-500.0,0.00020049,2]
[337323938,1725603041349,-378.9484028,0.00020049,2]
[337323939,1725603041359,-7546.56,0.00020049,2]
[337323940,1725603041369,-500.0,0.00020049,2]
[337323941,1725603041380,-504.969156,0.00020049,2]
[337323942,1725603041391,-622.45302436,0.00020049,2]
[337323943,1725603041402,-500.0,0.00020049,2]
[337323944,1725603041411,-500.0,0.00020049,2]
[337323945,1725603041425,-1350.37,0.00020049,2]
[337323946,1725603041437,-500.0,0.00020049,2]
[337323947,1725603041447,-500.0,0.00020049,2]
[337323948,1725603041458,-500.0,0.00020049,2]
[337323949,1725603041471,-500.0,0.00020049,2]
[337323950,1725603041482,-500.0,0.00020049,2]
[337323951,1725603041492,-1291.8,0.00020049,2]
[337323952,1725603041503,-500.0,0.00020049,2]
[337323953,1725603041515,-1424.74,0.00020049,2]
[337323954,1725603041526,-500.0,0.00020049,2]
[337323955,1725603041539,-500.0,0.00020049,2]
[337323956,1725603041549,-500.0,0.00020049,2]
[337323957,1725603041558,-1341.57,0.00020049,2]
[337323958,1725603041568,-1854.7,0.00020049,2]
[337323959,1725603041579,-511.25464496,0.00020049,2]
[337323960,1725603041590,-500.0,0.00020049,2]
[337323961,1725603041600,-500.0,0.00020049,2]
[337323962,1725603041611,-500.0,0.00020049,2]
[337323963,1725603041621,-500.0,0.00020049,2]
[337323964,1725603041631,-535.46731851,0.00020049,2]
[337323965,1725603041641,-500.0,0.00020049,2]
[337323966,1725603041651,-500.0,0.00020049,2]
[337323967,1725603041662,-353.93892279,0.00020049,2]
[337323968,1725603041672,-500.0,0.00020049,2]
[337323969,1725603041682,-500.0,0.00020049,2]
[337323970,1725603041693,-500.0,0.00020049,2]
[337323971,1725603041703,-500.0,0.00020049,2]
[337323972,1725603041713,-500.0,0.00020049,2]
[337323973,1725603041724,-500.0,0.00020049,2]
[337323974,1725603041734,-872.4,0.00020049,2]
[337323975,1725603041744,-500.0,0.00020049,2]
[337323976,1725603041754,-573.8,0.00020049,2]
[337323977,1725603041765,-500.0,0.00020049,2]
[337323978,1725603041775,-221.18392883,0.00020049,2]
[337323979,1725603041785,-500.0,0.00020049,2]
[337323980,1725603041795,-500.0,0.00020049,2]
[337323981,1725603041805,-624.71657563,0.00020049,2]
[337323982,1725603041815,-500.0,0.00020049,2]
[337323983,1725603041825,-500.0,0.00020049,2]
[337323984,1725603041836,-547.5,0.00020049,2]
[337323985,1725603041846,-500.0,0.00020049,2]
[337323986,1725603041856,-555.33,0.00020049,2]
[337323987,1725603041866,-500.0,0.00020049,2]
[337323988,1725603041877,-500.0,0.00020049,2]
[337323989,1725603041887,-500.0,0.00020049,2]
[337323990,1725603041897,-500.0,0.00020049,2]
[337323991,1725603041907,-606.52,0.00020049,2]
[337323992,1725603041917,-500.0,0.00020049,2]
[337323993,1725603041928,-500.0,0.00020049,2]
[337323994,1725603041938,-500.0,0.00020049,2]
[337323995,1725603041948,-587.94744208,0.00020049,2]
[337323996,1725603041958,-500.0,0.00020049,2]
[337323997,1725603041968,-500.0,0.00020049,2]
[337323998,1725603041977,-500.0,0.00020049,2]
[337323999,1725603041987,-535.48,0.00020049,2]
[337324000,1725603041996,-502.7179879,0.00020049,2]
[337324001,1725603042006,-500.0,0.00020049,2]
[337324002,1725603042016,-500.0,0.00020049,2]
[337324003,1725603042026,-500.0,0.00020049,2]
[337324004,1725603042036,-500.0,0.00020049,2]
[337324005,1725603042046,-500.0,0.00020049,2]
[337324006,1725603042056,-502.94031787,0.00020049,2]
[337324007,1725603042065,-500.0,0.00020049,2]
[337324008,1725603042075,-671.91,0.00020049,2]
[337324009,1725603042085,-500.0,0.00020049,2]
[337324010,1725603042095,-515.99085676,0.00020049,2]
[337324011,1725603042104,-500.0,0.00020049,2]
[337324012,1725603042114,-521.51701533,0.00020049,2]
[337324013,1725603042124,-500.0,0.00020049,2]
[337324014,1725603042134,-500.0,0.00020049,2]
[337324015,1725603042144,-500.0,0.00020049,2]
[337324016,1725603042156,-500.0,0.00020049,2]
[337324017,1725603042166,-500.0,0.00020049,2]
[337324018,1725603042176,-500.0,0.00020049,2]
[337324019,1725603042185,-500.0,0.00020049,2]
[337324020,1725603042195,-500.0,0.00020049,2]
[337324021,1725603042206,-500.0,0.00020049,2]
[337324022,1725603042216,-500.0,0.00020049,2]
[337324023,1725603042225,-500.0,0.00020049,2]
[337324024,1725603042235,-654.5,0.00020049,2]
[337324025,1725603042245,-500.0,0.00020049,2]
[337324026,1725603042256,-504.64337847,0.00020049,2]
[337324027,1725603042266,-500.0,0.00020049,2]
[337324028,1725603042276,-500.0,0.00020049,2]
[337324029,1725603042286,-500.0,0.00020049,2]
[337324030,1725603042296,-500.0,0.00020049,2]
[337324031,1725603042307,-500.0,0.00020049,2]
[337324032,1725603042317,-500.0,0.00020049,2]
[337324033,1725603042327,-500.0,0.00020049,2]
[337324034,1725603042337,-500.0,0.00020049,2]
[337324035,1725603042347,-500.0,0.00020049,2]
[337324036,1725603042357,-500.0,0.00020049,2]
[337324037,1725603042366,-500.0,0.00020049,2]
[337324038,1725603042378,-2392.4,0.00020049,2]
[337324039,1725603042387,-501.58541736,0.00020049,2]
[337324040,1725603042402,-504.72078525,0.00020049,2]
[337324041,1725603042412,-500.0,0.00020049,2]
[337324042,1725603042422,-500.0,0.00020049,2]
[337324043,1725603042432,-500.0,0.00020049,2]
[337324044,1725603042443,-500.0,0.00020049,2]
[337324045,1725603042452,-500.0,0.00020049,2]
[337324046,1725603042462,-116073.84,0.00020049,2]
[337324047,1725603042473,-500.0,0.00020049,2]
[337324048,1725603042482,-500.0,0.00020049,2]
[337324050,1725603042493,-500.0,0.00020049,2]
[337324052,1725603042502,-500.0,0.00020049,2]
[337324053,1725603042513,-500.0,0.00020049,2]
[337324054,1725603042524,-500.0,0.00020049,2]
[337324055,1725603042533,-500.0,0.00020049,2]
[337324056,1725603042545,-500.0,0.00020049,2]
[337324057,1725603042554,-500.0,0.00020049,2]
[337324058,1725603042563,-500.0,0.00020049,2]
[337324059,1725603042573,-501.17211331,0.00020049,2]
[337324060,1725603042583,-500.0,0.00020049,2]
[337324061,1725603042593,-1403.48,0.00020049,2]
[337324063,1725603042602,-500.0,0.00020049,2]
[337324065,1725603042612,-500.0,0.00020049,2]
[337324067,1725603042623,-500.0,0.00020049,2]
[337324069,1725603042633,-500.0,0.00020049,2]
[337324070,1725603042643,-500.0,0.00020049,2]
[337324071,1725603042653,-500.0,0.00020049,2]
[337324072,1725603042664,-500.0,0.00020049,2]
[337324073,1725603042675,-772.05,0.00020049,2]
[337324074,1725603042686,-500.0,0.00020049,2]
[337324075,1725603042696,-500.0,0.00020049,2]
[337324076,1725603042706,-500.0,0.00020049,2]
[337324077,1725603042716,-500.0,0.00020049,2]
[337324078,1725603042728,-500.0,0.00020049,2]
[337324079,1725603042741,-500.0,0.00020049,2]
[337324080,1725603042751,-500.0,0.00020049,2]
[337324081,1725603042761,-500.0,0.00020049,2]
[337324082,1725603042770,-500.0,0.00020049,2]
[337324083,1725603042779,-1367.49,0.00020049,2]
[337324084,1725603042789,-500.0,0.00020049,2]
[337324085,1725603042799,-500.0,0.00020049,2]
[337324086,1725603042808,-500.0,0.00020049,2]
[337324087,1725603042818,-500.0,0.00020049,2]
[337324088,1725603042827,-500.0,0.00020049,2]
[337324089,1725603042839,-605.30508296,0.00020049,2]
[337324090,1725603042850,-500.0,0.00020049,2]
[337324091,1725603042859,-500.0,0.00020049,2]
[337324092,1725603042868,-500.0,0.00020049,2]
[337324093,1725603042878,-500.0,0.00020058,2]
[337324094,1725603042888,-500.0,0.00020058,2]
[337324095,1725603042898,-500.0,0.00020058,2]
[337324096,1725603042908,-500.0,0.00020058,2]
[337324097,1725603042918,-500.0,0.00020058,2]
[337324098,1725603042928,-500.0,0.00020058,2]
[337324099,1725603042938,-452.77674134,0.00020059,2]
[337324100,1725603042947,-500.0,0.00020069,2]
[337324101,1725603042957,-500.0,0.00020069,2]
[337324102,1725603042966,-500.0,0.00020069,2]
[337324103,1725603042976,-500.0,0.00020069,2]
[337324104,1725603042986,-500.0,0.00020069,2]
[337324105,1725603042995,-500.0,0.00020069,2]
[337324106,1725603043005,-740.53,0.00020069,2]
[337324107,1725603043016,-500.0,0.00020069,2]
[337324108,1725603043026,-272.13907172,0.00020069,2]
[337324109,1725603043036,-500.0,0.00020069,2]
[337324110,1725603043046,-1539.53,0.00020069,2]
[337324111,1725603043056,-500.0,0.00020069,2]
[337324112,1725603043066,-754.9,0.00020069,2]
[337324113,1725603043076,-500.0,0.00020069,2]
[337324114,1725603043085,-733.87,0.00020069,2]
[337324115,1725603043095,-586.56,0.00020069,2]
[337324116,1725603043105,-500.0,0.00020069,2]
[337324118,1725603043116,-500.0,0.00020069,2]
[337324120,1725603043126,-500.0,0.00020069,2]
[337324121,1725603043135,-500.0,0.00020069,2]
[337324123,1725603043145,-1561.89,0.00020069,2]
[337324124,1725603043155,-500.0,0.00020069,2]